bitfinex/quotes_BTCUSD_20250313
["timestamp","ask_amount","ask_price","bid_price","bid_amount"]
[1741878558914,0.46055423,81798.0,81797.0,0.00331562]
[1741878559220,0.256763,81787.0,81786.0,0.000169]
[1741878559410,0.75822216,81787.0,81786.0,0.000169]
[1741878559914,0.77737909,81787.0,81786.0,0.000169]
[1741878560113,0.65911993,81787.0,81786.0,0.000169]
[1741878560318,0.01915693,81787.0,81786.0,0.000169]
[1741878560529,0.03238293,81787.0,81786.0,0.000169]
[1741878560730,0.27691993,81787.0,81786.0,0.000169]
[1741878561396,0.02015693,81787.0,81786.0,0.000169]
[1741878561593,0.03238293,81787.0,81786.0,0.000169]
[1741878561834,0.013226,81787.0,81786.0,0.000169]
[1741878562879,0.001,81787.0,81786.0,0.000169]
[1741878563191,0.013226,81787.0,81786.0,0.000169]
[1741878563326,0.001,81787.0,81786.0,0.000169]
[1741878563532,0.013226,81787.0,81786.0,0.000169]
[1741878564036,0.012226,81787.0,81786.0,0.000169]
[1741878564212,0.012226,81787.0,81786.0,0.001169]
[1741878565521,0.13048516,81787.0,81786.0,0.001169]
[1741878565823,0.012226,81787.0,81786.0,0.001169]
[1741878567370,0.012226,81787.0,81786.0,0.000169]
[1741878567553,0.03238175,81787.0,81786.0,0.000169]
[1741878568854,0.03138175,81787.0,81786.0,0.000169]
[1741878569231,0.03138175,81787.0,81786.0,0.001169]
[1741878570247,0.01223,81761.0,81752.0,0.244642]
[1741878570541,0.01223,81761.0,81755.0,0.244632]
[1741878570748,0.256845,81761.0,81753.0,0.7762]
[1741878571129,0.256845,81761.0,81754.0,0.244635]
[1741878571327,0.03138843,81764.0,81759.0,0.244618]
[1741878571535,0.01223,81762.0,81757.0,0.012231]
[1741878571955,0.01323,81761.0,81760.0,0.013]
[1741878572129,0.01323,81761.0,81760.0,0.008]
[1741878572130,0.4730365,81761.0,81760.0,0.008]
[1741878572336,0.51023099,81761.0,81760.0,0.008]
[1741878572557,0.51023099,81761.0,81760.0,0.013]
[1741878573162,0.02447912,81764.0,81763.0,0.244609]
[1741878573565,0.02447912,81764.0,81760.0,0.013]
[1741878573566,0.03670912,81764.0,81760.0,0.013]
[1741878573773,0.256841,81763.0,81760.0,0.013]
[1741878573996,0.256844,81762.0,81760.0,0.013]
[1741878574231,0.01223,81761.0,81760.0,0.008]
[1741878574481,0.312228,81774.0,81763.0,0.01223]
[1741878574622,0.012229,81769.0,81763.0,0.01223]
[1741878574834,0.256828,81767.0,81761.0,0.01223]
[1741878575014,0.256828,81767.0,81760.0,0.252616]
[1741878575015,0.244612,81762.0,81760.0,0.008]
[1741878575216,0.01223,81761.0,81760.0,0.008]
[1741878575912,0.31223,81761.0,81760.0,0.008]
[1741878576117,0.3313909,81761.0,81760.0,0.008]
[1741878577063,0.0191609,81761.0,81760.0,0.008]
[1741878577211,0.0191609,81761.0,81760.0,0.02023]
[1741878578299,0.0191609,81761.0,81760.0,0.009]
[1741878579133,0.0191609,81761.0,81760.0,0.265848]
[1741878579860,0.244608,81764.0,81760.0,0.009]
[1741878579997,0.012229,81768.0,81760.0,0.009]
[1741878579998,0.256842,81763.0,81760.0,0.009]
[1741878580395,0.244599,81767.0,81760.0,0.009]
[1741878580681,0.244606,81765.0,81760.0,0.009]
[1741878581101,0.244597,81767.0,81762.0,0.01223]
[1741878581314,0.01223,81765.0,81760.0,0.009]
[1741878581460,0.01223,81766.0,81761.0,0.256843]
[1741878581664,0.24458,81773.0,81762.0,0.01223]
[1741878581878,0.26374999,81770.0,81766.0,0.244598]
[1741878582272,0.01915999,81770.0,81765.0,0.01223]
[1741878582627,0.01915999,81770.0,81766.0,0.256828]
[1741878582923,0.01915999,81770.0,81769.0,0.25682]
[1741878583131,0.012225,81799.0,81792.0,0.012226]
[1741878583333,0.012224,81802.0,81795.0,0.244512]
[1741878583508,0.012222,81814.0,81804.0,0.244484]
[1741878583714,0.16448,81817.0,81804.0,0.012224]
[1741878583715,0.012222,81815.0,81804.0,0.012224]
[1741878584123,0.012223,81808.0,81803.0,0.256713]
[1741878584327,0.012225,81797.0,81781.0,0.06109346]
[1741878584499,0.256733,81797.0,81789.0,0.36422999]
[1741878584702,0.244513,81796.0,81790.0,0.256751]
[1741878584903,0.012225,81796.0,81791.0,0.37544999]
[1741878585199,0.012225,81796.0,81791.0,1.87544999]
[1741878585373,0.256722,81800.0,81794.0,0.012225]
[1741878585602,0.244481,81806.0,81800.0,0.012224]
[1741878585805,0.256705,81806.0,81799.0,0.244501]
[1741878586004,0.012224,81804.0,81797.0,0.244507]
[1741878586240,0.244473,81809.0,81800.0,0.012224]
[1741878586442,0.012223,81807.0,81800.0,0.244497]
[1741878586595,0.012223,81807.0,81803.0,0.001]
[1741878586774,0.312222,81816.0,81810.0,0.244467]
[1741878586986,0.3,81816.0,81810.0,0.25669]
[1741878587162,0.3,81816.0,81812.0,0.256684]
[1741878587374,0.001,81804.0,81799.0,0.244501]
[1741878587572,0.001,81804.0,81800.0,0.11970099]
[1741878587800,0.244495,81801.0,81800.0,0.11970099]
[1741878588004,0.012224,81802.0,81800.0,0.11970099]
[1741878588208,0.256713,81803.0,81800.0,0.11970099]
[1741878588413,0.244495,81801.0,81800.0,0.11970099]
[1741878588902,0.256738,81796.0,81791.0,1.5]
[1741878589105,0.256738,81796.0,81787.0,0.244536]
[1741878589106,0.012225,81794.0,81792.0,0.11970099]
[1741878589251,0.012225,81793.0,81790.0,0.16384]
[1741878589462,0.244519,81793.0,81790.0,0.16384]
[1741878589620,0.012225,81796.0,81790.0,0.16384]
[1741878589819,0.256737,81796.0,81790.0,0.408366]
[1741878590228,0.244522,81792.0,81790.0,0.16384]
[1741878590427,0.244499,81800.0,81782.0,0.244549]
[1741878590428,0.012224,81805.0,81795.0,0.012225]
[1741878590712,0.3,81819.0,81803.0,0.012224]
[1741878590713,0.012222,81813.0,81803.0,0.012224]
[1741878591014,0.01915089,81803.0,81801.0,0.244494]
[1741878591197,0.01915089,81803.0,81802.0,0.012224]
[1741878591401,0.244501,81799.0,81791.0,0.25675]
[1741878591597,0.244516,81795.0,81788.0,0.012226]
[1741878591799,0.012225,81797.0,81790.0,0.256752]
[1741878592131,0.012225,81796.0,81787.0,0.407934]
[1741878592303,0.012225,81797.0,81791.0,0.012226]
[1741878592539,0.01915089,81803.0,81796.0,0.24451]
[1741878592540,0.012224,81802.0,81796.0,0.24451]
[1741878592709,0.01915089,81803.0,81802.0,0.012224]
[1741878593074,0.256719,81802.0,81797.0,0.11970099]
[1741878593281,0.244504,81798.0,81797.0,0.11970099]
[1741878593495,0.012225,81799.0,81797.0,0.11970099]
[1741878593697,0.2445,81800.0,81797.0,0.11970099]
[1741878593899,0.256721,81801.0,81797.0,0.11970099]
[1741878594126,0.012224,81800.0,81797.0,0.11970099]
[1741878594330,0.256725,81800.0,81797.0,0.11970099]
[1741878594492,0.012224,81800.0,81797.0,0.11970099]
[1741878594699,0.01915089,81803.0,81802.0,0.012224]
[1741878594906,0.01915089,81803.0,81802.0,1.63192499]
[1741878595109,0.01222,81828.0,81818.0,0.012222]
[1741878595332,0.256662,81820.0,81813.0,0.244459]
[1741878595529,0.31222,81827.0,81820.0,0.012221]
[1741878595742,0.244426,81825.0,81820.0,1.756657]
[1741878595944,0.24439,81837.0,81826.0,0.012221]
[1741878596148,0.244403,81832.0,81826.0,0.11970099]
[1741878596431,0.012219,81838.0,81820.0,1.5]
[1741878596432,0.012221,81821.0,81820.0,1.5]
[1741878597054,0.256686,81812.0,81804.0,0.45598459]
[1741878597253,0.012223,81808.0,81804.0,0.19927659]
[1741878597457,0.24448,81806.0,81805.0,0.11970099]
[1741878597802,0.256689,81811.0,81805.0,0.11970099]
[1741878597986,0.012223,81811.0,81805.0,0.11970099]
[1741878598183,0.256697,81809.0,81805.0,0.11970099]
[1741878598569,0.244474,81809.0,81805.0,0.12370099]
[1741878598763,0.012223,81811.0,81805.0,0.12370099]
[1741878598764,0.25669,81811.0,81805.0,0.36818299]
[1741878599009,0.244462,81812.0,81805.0,0.37640699]
[1741878599239,0.244462,81812.0,81806.0,0.244479]
[1741878599441,0.244462,81812.0,81807.0,0.256698]
[1741878599720,0.244462,81812.0,81806.0,0.36417999]
[1741878599721,0.25669,81811.0,81806.0,0.37640399]
[1741878599870,0.256682,81813.0,81808.0,0.012223]
[1741878600074,0.01222,81827.0,81820.0,0.256658]
[1741878600279,0.012217,81849.0,81841.0,0.012218]
[1741878600509,0.012217,81851.0,81841.0,0.11970099]
[1741878600707,0.00121606,81850.0,81830.0,0.16296]
[1741878600882,0.256626,81831.0,81830.0,0.16296]
[1741878601069,0.012219,81838.0,81830.0,0.16296]
[1741878601271,0.256611,81836.0,81830.0,0.16296]
[1741878601512,0.244401,81833.0,81830.0,0.16296]
[1741878601712,0.256626,81831.0,81830.0,0.16296]
[1741878601919,0.012223,81811.0,81804.0,0.0486]
[1741878602114,0.01914401,81833.0,81804.0,0.0486]
[1741878602115,0.244465,81814.0,81808.0,0.16276]
[1741878602322,0.01914401,81833.0,81821.0,0.012221]
[1741878602532,0.3,81839.0,81824.0,0.012221]
[1741878602743,0.012218,81841.0,81833.0,0.01222]
[1741878602953,0.02440602,81852.0,81841.0,0.012218]
[1741878603169,0.012218,81846.0,81839.0,0.012219]
[1741878603374,0.000338,81854.0,81830.0,0.0507]
[1741878603375,0.012219,81834.0,81830.0,0.0507]
[1741878603579,0.01222,81831.0,81830.0,0.002]
[1741878604138,0.31343606,81831.0,81830.0,0.002]
[1741878604336,0.31222,81831.0,81830.0,0.002]
[1741878604743,0.012219,81836.0,81825.0,0.256642]
[1741878604944,0.244406,81831.0,81826.0,0.13192199]
[1741878605151,0.2444,81833.0,81828.0,0.01222]
[1741878605344,0.25659,81843.0,81836.0,0.012219]
[1741878605556,0.244416,81828.0,81826.0,0.11970099]
[1741878605774,0.012221,81823.0,81817.0,0.16296]
[1741878605986,0.012219,81834.0,81827.0,0.244415]
[1741878606162,0.01914392,81838.0,81821.0,0.256656]
[1741878606359,0.012222,81819.0,81809.0,0.012223]
[1741878606590,0.244439,81820.0,81815.0,0.244451]
[1741878606918,0.256653,81823.0,81818.0,0.256664]
[1741878607049,0.256659,81821.0,81816.0,0.256672]
[1741878607254,0.256656,81822.0,81817.0,0.419627]
[1741878607451,0.012222,81819.0,81817.0,0.16296]
[1741878607646,0.012222,81813.0,81803.0,0.02427549]
[1741878607892,0.012224,81805.0,81804.0,0.11970099]
[1741878608099,0.244463,81812.0,81800.0,0.012224]
[1741878608368,0.012223,81809.0,81800.0,0.13192499]
[1741878608569,0.244482,81806.0,81800.0,0.11970099]
[1741878608820,0.012223,81807.0,81800.0,0.13192499]
[1741878609083,0.012225,81799.0,81792.0,0.244522]
[1741878609305,0.256707,81805.0,81798.0,0.012225]
[1741878609567,0.002,81812.0,81811.0,0.012223]
[1741878609802,0.0802,81848.0,81843.0,0.012218]
[1741878610029,0.4153,81863.0,81837.0,0.012219]
[1741878610030,0.02388855,81849.0,81837.0,0.012219]
[1741878610305,0.244361,81846.0,81840.0,0.012218]
[1741878610546,0.256571,81849.0,81843.0,0.256585]
[1741878610772,0.000338,81854.0,81851.0,0.244346]
[1741878611014,0.000338,81854.0,81852.0,0.11970099]
[1741878611246,0.256557,81853.0,81852.0,0.11970099]
[1741878611491,0.012218,81842.0,81840.0,0.1626]
[1741878611744,0.256594,81841.0,81840.0,0.28230099]
[1741878611962,0.256594,81841.0,81840.0,0.1626]
[1741878612452,0.012219,81837.0,81832.0,0.2444]
[1741878612680,0.256605,81838.0,81833.0,0.13192099]
[1741878612954,0.256605,81838.0,81827.0,0.2694253]
[1741878612955,0.012221,81822.0,81817.0,0.012222]
[1741878613197,0.012221,81822.0,81813.0,0.11970099]
[1741878613198,0.012222,81817.0,81813.0,0.11970099]
[1741878613423,0.244501,81799.0,81792.0,0.012226]
[1741878613657,0.16256,81828.0,81804.0,0.012224]
[1741878613883,0.012223,81808.0,81804.0,0.11970099]
[1741878614110,0.012224,81800.0,81791.0,0.0001691]
[1741878614335,0.012224,81800.0,81796.0,0.11970099]
[1741878614525,0.012225,81799.0,81796.0,0.11970099]
[1741878614774,0.244501,81799.0,81796.0,0.11970099]
[1741878615010,0.012223,81808.0,81801.0,0.012224]
[1741878615254,0.244464,81812.0,81799.0,0.012225]
[1741878615487,0.012219,81835.0,81827.0,0.244416]
[1741878615692,0.244424,81825.0,81820.0,0.012221]
[1741878615846,0.244433,81822.0,81820.0,0.11970099]
[1741878616049,0.01914482,81838.0,81834.0,0.012219]
[1741878616253,0.244397,81834.0,81827.0,0.01222]
[1741878616482,0.01914482,81838.0,81834.0,0.256616]
[1741878616638,0.256594,81842.0,81835.0,0.36409299]
[1741878616861,0.012218,81846.0,81835.0,0.36409299]
[1741878616862,0.012218,81845.0,81839.0,0.012219]
[1741878617065,0.24437,81843.0,81835.0,0.13191999]
[1741878617272,0.244382,81839.0,81835.0,0.11970099]
[1741878617522,0.012217,81850.0,81839.0,0.012219]
[1741878617692,0.012218,81841.0,81833.0,0.01222]
[1741878617894,0.256611,81836.0,81829.0,0.1747]
[1741878618092,0.012219,81839.0,81830.0,0.13192099]
[1741878618303,0.244355,81848.0,81840.0,0.244379]
[1741878618497,0.244362,81846.0,81838.0,0.244384]
[1741878618720,0.000338,81854.0,81846.0,0.012218]
[1741878618902,0.000338,81854.0,81853.0,0.012217]
[1741878619096,0.000338,81854.0,81853.0,0.256557]
[1741878620138,0.000338,81854.0,81853.0,0.37625799]
[1741878620925,0.244675,81854.0,81853.0,0.11970099]
[1741878621139,0.000338,81854.0,81853.0,0.11970099]
[1741878621298,0.000338,81854.0,81853.0,0.13191799]
[1741878621705,1e-06,81854.0,81853.0,0.13313953]
[1741878621910,1e-06,81854.0,81853.0,0.14768038]
[1741878622105,1e-06,81854.0,81853.0,0.22288038]
[1741878622354,1e-06,81854.0,81853.0,0.64058038]
[1741878622526,1e-06,81854.0,81853.0,0.63435884]
[1741878622736,1e-06,81854.0,81853.0,0.63735884]
[1741878622939,0.0003384,81879.0,81868.0,0.256509]
[1741878623156,0.0003384,81879.0,81868.0,0.53928999]
[1741878623896,0.244281,81873.0,81868.0,0.28278099]
[1741878624113,0.0003384,81879.0,81868.0,0.30953584]
[1741878624896,4e-07,81869.0,81868.0,0.35453584]
[1741878625101,4e-07,81869.0,81868.0,0.37922461]
[1741878625301,4e-07,81869.0,81868.0,0.38522461]
[1741878625506,4e-07,81874.0,81873.0,0.256494]
[1741878625778,0.0003384,81879.0,81878.0,0.27101885]
[1741878626002,0.0003384,81879.0,81878.0,0.39071984]
[1741878627670,0.0003384,81879.0,81878.0,0.13424184]
[1741878628076,0.012214,81873.0,81861.0,0.25653]
[1741878628295,0.012215,81866.0,81861.0,0.11970099]
[1741878628496,0.256509,81868.0,81861.0,0.37623199]
[1741878628646,0.256509,81868.0,81863.0,0.24431]
[1741878628856,0.2446014,81879.0,81869.0,0.012214]
[1741878628857,0.0003384,81879.0,81869.0,0.012214]
[1741878629031,0.012214,81871.0,81863.0,0.012215]
[1741878629219,0.012214,81872.0,81866.0,0.244301]
[1741878629420,0.244283,81873.0,81868.0,0.256509]
[1741878629639,0.244283,81873.0,81855.0,0.175096]
[1741878629640,0.012215,81864.0,81855.0,0.175096]
[1741878629837,0.244303,81866.0,81861.0,0.244316]
[1741878630052,0.012215,81865.0,81861.0,0.11970099]
[1741878630404,0.25651,81868.0,81863.0,0.012215]
[1741878630742,0.012215,81862.0,81861.0,0.003]
[1741878631336,0.012215,81864.0,81861.0,0.003]
[1741878631554,0.3,81871.0,81868.0,0.012214]
[1741878631707,0.3,81878.0,81873.0,0.256493]
[1741878631911,0.0003384,81879.0,81876.0,0.012213]
[1741878632314,0.0003384,81879.0,81875.0,0.256485]
[1741878632517,0.256506,81869.0,81863.0,0.012215]
[1741878632719,0.256506,81869.0,81868.0,0.002]
[1741878632923,0.012216,81859.0,81853.0,0.012217]
[1741878633226,0.012216,81859.0,81854.0,0.11970099]
[1741878633389,0.012215,81862.0,81856.0,0.244329]
[1741878633390,0.244318,81861.0,81856.0,0.244329]
[1741878633599,0.2568672,81862.0,81857.0,0.256541]
[1741878633798,0.0003382,81862.0,81859.0,0.24432]
[1741878633996,0.0003382,81862.0,81861.0,0.27107185]
[1741878634207,0.0003382,81862.0,81861.0,0.39077284]
[1741878634771,2e-07,81862.0,81861.0,0.47027284]
[1741878635177,2e-07,81862.0,81861.0,0.39077284]
[1741878635683,2e-07,81862.0,81861.0,0.41547558]
[1741878635881,2e-07,81862.0,81861.0,0.42047558]
[1741878636467,2e-07,81862.0,81861.0,0.30156184]
[1741878636704,2e-07,81862.0,81861.0,0.30877684]
[1741878637084,2e-07,81862.0,81861.0,0.31477684]
[1741878637284,2e-07,81862.0,81861.0,0.30023599]
[1741878637488,2e-07,81862.0,81861.0,0.31477684]
[1741878637708,0.00420032,81862.0,81861.0,0.31477684]
[1741878637941,2e-07,81862.0,81861.0,0.30256184]
[1741878638144,2e-07,81862.0,81861.0,0.55909284]
[1741878638541,2e-07,81862.0,81861.0,0.30256184]
[1741878638749,0.0122152,81862.0,81861.0,0.16232]
[1741878638902,0.00418194,81862.0,81861.0,0.16232]
[1741878639109,0.00418194,81862.0,81861.0,0.16632]
[1741878639311,0.00418194,81862.0,81861.0,0.004]
[1741878639516,0.00418194,81862.0,81861.0,0.012215]
[1741878639725,2e-07,81862.0,81861.0,0.13491599]
[1741878640123,2e-07,81862.0,81861.0,0.13191599]
[1741878640319,2e-07,81862.0,81861.0,0.11970099]
[1741878640531,2e-07,81862.0,81861.0,0.37923199]
[1741878641785,2e-07,81862.0,81861.0,0.39377284]
[1741878642327,2e-07,81862.0,81861.0,0.39077284]
[1741878642532,2e-07,81862.0,81861.0,0.43927284]
[1741878642733,2e-07,81862.0,81861.0,0.52207284]
[1741878642955,2e-07,81862.0,81861.0,0.81907284]
[1741878643405,2e-07,81862.0,81861.0,0.52507284]
[1741878643548,2e-07,81862.0,81861.0,0.15245684]
[1741878644193,2e-07,81862.0,81861.0,0.14645684]
[1741878644628,2e-07,81862.0,81861.0,0.13546321]
[1741878644739,2e-07,81862.0,81861.0,0.13424184]
[1741878644947,2e-07,81862.0,81861.0,0.14645684]
[1741878645161,2e-07,81862.0,81861.0,0.14767822]
[1741878645662,2e-07,81862.0,81861.0,0.15245684]
[1741878646084,2e-07,81862.0,81861.0,0.14662584]
[1741878646285,2e-07,81862.0,81861.0,0.15262584]
[1741878646984,2e-07,81862.0,81861.0,0.15384722]
[1741878648917,2e-07,81862.0,81861.0,0.15262584]
[1741878649148,2e-07,81862.0,81861.0,0.13441084]
[1741878649319,2e-07,81862.0,81861.0,0.14662584]
[1741878649524,0.00433662,81862.0,81861.0,0.14041084]
[1741878649876,2e-07,81862.0,81861.0,0.13441084]
[1741878650284,2e-07,81862.0,81861.0,0.13808499]
[1741878650428,0.00434839,81862.0,81861.0,0.13808499]
[1741878650620,2e-07,81862.0,81861.0,0.13808499]
[1741878651236,2e-07,81862.0,81861.0,0.12586999]
[1741878651431,0.24866193,81862.0,81861.0,0.12586999]
[1741878651638,0.26087693,81862.0,81861.0,0.12586999]
[1741878652189,0.26087693,81862.0,81861.0,0.11986999]
[1741878652387,0.26087693,81862.0,81861.0,0.000169]
[1741878652690,0.26087693,81862.0,81861.0,0.004169]
[1741878652892,0.26087693,81862.0,81861.0,0.000169]
[1741878653104,0.00408063,81862.0,81861.0,0.012384]
[1741878653352,0.256511,81868.0,81862.0,0.244313]
[1741878653536,0.019136,81869.0,81864.0,0.012215]
[1741878653746,0.019136,81869.0,81865.0,0.244302]
[1741878653939,0.256514,81867.0,81861.0,0.12286999]
[1741878654143,0.256514,81867.0,81861.0,0.36718399]
[1741878654297,0.244313,81862.0,81861.0,0.12286999]
[1741878654500,0.244313,81862.0,81861.0,0.003169]
[1741878654501,0.256528,81862.0,81861.0,0.003169]
[1741878654721,0.012215,81862.0,81861.0,0.003169]
[1741878654920,0.019136,81869.0,81861.0,0.13508499]
[1741878655146,0.019136,81869.0,81866.0,0.012215]
[1741878655355,0.019136,81869.0,81867.0,0.244298]
[1741878655526,0.019136,81869.0,81868.0,0.37620999]
[1741878655727,0.24427,81877.0,81872.0,0.244282]
[1741878655932,0.0003384,81879.0,81873.0,0.012214]
[1741878656529,0.0003384,81879.0,81873.0,0.13191499]
[1741878656682,0.0003384,81879.0,81873.0,0.14645584]
[1741878657225,0.244268,81878.0,81873.0,0.13724184]
[1741878657403,0.0125514,81879.0,81873.0,0.13724184]
[1741878657612,0.244615,81874.0,81873.0,0.13424184]
[1741878657909,0.000338,81874.0,81873.0,0.13424184]
[1741878658113,0.000338,81874.0,81873.0,0.14645584]
[1741878659070,0.000338,81874.0,81873.0,0.15145584]
[1741878659295,0.000338,81874.0,81873.0,0.15267711]
[1741878659896,0.000338,81874.0,81873.0,0.15145584]
[1741878660297,0.256828,81874.0,81873.0,0.13924184]
[1741878660517,0.012551,81874.0,81873.0,0.13424184]
[1741878660678,0.00463641,81874.0,81873.0,0.14024184]
[1741878660900,0.012551,81874.0,81873.0,0.006]
[1741878661348,0.00463641,81874.0,81873.0,0.006]
[1741878661548,0.00463641,81874.0,81873.0,0.38219499]
[1741878661764,0.000338,81874.0,81873.0,0.38219499]
[1741878661976,0.000338,81874.0,81873.0,0.12570099]
[1741878662447,0.000338,81874.0,81873.0,0.006]
[1741878662448,0.01684387,81874.0,81873.0,0.006]
[1741878662711,0.56716428,81874.0,81873.0,1e-06]
[1741878662902,0.56716428,81874.0,81822.0,0.88349057]
[1741878662903,0.256601,81839.0,81838.0,0.15868]
[1741878663058,0.25661,81836.0,81828.0,0.15864]
[1741878663265,0.01222,81833.0,81828.0,0.39853156]
[1741878663457,0.256581,81846.0,81841.0,0.012218]
[1741878663662,0.012218,81840.0,81830.0,0.256628]
[1741878663860,0.244368,81844.0,81832.0,0.01222]
[1741878664202,0.012218,81846.0,81834.0,0.01454085]
[1741878664431,0.012218,81846.0,81836.0,0.01454085]
[1741878664550,0.012218,81844.0,81839.0,0.256599]
[1741878664757,0.012216,81858.0,81851.0,0.012217]
[1741878664958,0.01190382,81863.0,81855.0,0.012216]
[1741878665173,0.312215,81866.0,81859.0,0.012216]
[1741878665394,0.3,81862.0,81857.0,0.244326]
[1741878665695,0.01201278,81873.0,81871.0,0.244286]
[1741878665877,0.244295,81869.0,81860.0,0.01454085]
[1741878666246,0.000338,81874.0,81867.0,0.012214]
[1741878666390,0.244295,81868.0,81867.0,0.11970099]
[1741878666596,0.012214,81871.0,81867.0,0.11970099]
[1741878666800,0.012214,81868.0,81867.0,0.11970099]
[1741878666999,0.244617,81874.0,81867.0,0.11970099]
[1741878667214,0.000338,81874.0,81873.0,0.24428]
[1741878667433,0.000338,81874.0,81873.0,0.37619499]
[1741878667657,0.000338,81874.0,81873.0,0.11970099]
[1741878668056,0.012551,81874.0,81873.0,0.11970099]
[1741878668258,0.012551,81874.0,81859.0,0.244321]
[1741878668259,0.244303,81866.0,81860.0,0.25885885]
[1741878668463,0.244295,81868.0,81867.0,0.01454085]
[1741878668616,0.244304,81866.0,81861.0,0.36401599]
[1741878668833,0.244304,81866.0,81862.0,0.15816]
[1741878668834,0.256525,81863.0,81862.0,0.15816]
[1741878669027,0.012215,81865.0,81862.0,0.15816]
[1741878669300,0.3,81875.0,81873.0,0.012214]
[1741878669544,0.244309,81864.0,81856.0,0.244328]
[1741878669807,0.01913516,81870.0,81869.0,0.012214]
[1741878670511,0.02342916,81870.0,81869.0,0.012214]
[1741878671142,0.02342916,81870.0,81869.0,0.14645584]
[1741878671528,0.02342916,81870.0,81869.0,0.14945584]
[1741878671718,0.01913516,81870.0,81869.0,0.14945584]
[1741878672011,0.03134916,81870.0,81869.0,0.003]
[1741878672331,0.03563617,81870.0,81869.0,0.003]
[1741878673117,0.256585,81844.0,81843.0,0.1576]
[1741878673279,0.256585,81844.0,81843.0,0.27730099]
[1741878673487,0.00424381,81844.0,81843.0,0.27730099]
[1741878673708,0.256551,81855.0,81849.0,0.244351]
[1741878673915,0.26082856,81844.0,81843.0,0.1576]
[1741878674157,0.24437,81843.0,81840.0,0.000169]
[1741878674366,0.256594,81841.0,81840.0,0.000169]
[1741878674561,0.00424124,81842.0,81840.0,0.000169]
[1741878674907,0.012216,81855.0,81849.0,0.012217]
[1741878675164,0.012215,81861.0,81854.0,0.012216]
[1741878675368,0.3,81869.0,81858.0,0.012216]
[1741878675567,0.244295,81868.0,81859.0,0.36402099]
[1741878675773,0.544289,81871.0,81863.0,0.012215]
[1741878675980,0.012214,81867.0,81862.0,0.244312]
[1741878676206,0.012214,81867.0,81859.0,0.11970099]
[1741878676207,0.256525,81863.0,81859.0,0.11970099]
[1741878676404,0.012216,81858.0,81849.0,0.15764]
[1741878676585,0.012217,81852.0,81850.0,0.11970099]
[1741878676929,0.012217,81852.0,81845.0,0.012218]
[1741878676930,0.244373,81842.0,81840.0,0.003169]
[1741878677140,0.256585,81844.0,81840.0,0.003169]
[1741878677393,0.244374,81842.0,81840.0,0.003169]
[1741878677569,0.00284141,81843.0,81841.0,0.256591]
[1741878677782,0.256563,81851.0,81846.0,0.244359]
[1741878677982,0.01913987,81850.0,81847.0,0.244356]
[1741878678183,0.098311,81874.0,81849.0,0.01454085]
[1741878678361,0.244291,81870.0,81864.0,0.244304]
[1741878678751,0.256508,81869.0,81863.0,0.256525]
[1741878679181,0.01913613,81869.0,81868.0,0.02675485]
[1741878679385,0.005098,81874.0,81873.0,0.256494]
[1741878679586,0.005098,81874.0,81873.0,0.38973584]
[1741878680576,4e-07,81879.0,81878.0,0.256478]
[1741878680779,4e-07,81879.0,81878.0,0.39071984]
[1741878681163,4e-07,81879.0,81878.0,0.54827984]
[1741878681916,4e-07,81879.0,81878.0,0.55027984]
[1741878682123,4e-07,81879.0,81878.0,0.54827984]
[1741878682473,0.0010004,81879.0,81878.0,0.55027984]
[1741878683214,4e-07,81879.0,81878.0,0.59807984]
[1741878683617,4e-07,81879.0,81878.0,2.09807984]
[1741878683875,4e-07,81879.0,81878.0,2.80877984]
[1741878684715,4e-07,81879.0,81878.0,2.81377984]
[1741878685022,4e-07,81879.0,81878.0,2.82295172]
[1741878685250,6e-07,81885.0,81884.0,0.256459]
[1741878685447,6e-07,81885.0,81884.0,0.39070084]
[1741878688079,6e-07,81885.0,81884.0,0.69570084]
[1741878688492,6e-07,81885.0,81884.0,0.70170084]
[1741878688861,6e-07,81885.0,81884.0,2.66240084]
[1741878689248,6e-07,81885.0,81884.0,2.65640084]
[1741878689846,0.0003384,81916.0,81885.0,0.3]
[1741878690053,1e-06,81909.0,81908.0,0.39062584]
[1741878690300,0.0003384,81916.0,81915.0,0.27090285]
[1741878690479,0.0003384,81916.0,81915.0,0.39060384]
[1741878690683,0.0003384,81916.0,81915.0,1.89060384]
[1741878690887,0.0003384,81916.0,81915.0,1.91486563]
[1741878691094,0.0003384,81916.0,81886.0,0.77532]
[1741878691320,0.01221,81898.0,81887.0,0.11970099]
[1741878691513,0.012211,81890.0,81887.0,0.11970099]
[1741878691717,0.012209,81901.0,81889.0,0.244233]
[1741878691920,0.244206,81899.0,81894.0,0.01454085]
[1741878692144,0.256422,81896.0,81895.0,0.11970099]
[1741878692520,0.256422,81896.0,81895.0,0.13424184]
[1741878692798,0.01912517,81898.0,81897.0,0.256419]
[1741878692957,0.01912517,81898.0,81897.0,0.11970099]
[1741878693153,0.01912517,81898.0,81897.0,0.39066084]
[1741878693951,0.01912517,81898.0,81897.0,0.13424184]
[1741878694186,0.01221,81896.0,81895.0,0.15816]
[1741878694393,0.2658662,81898.0,81895.0,0.15816]
[1741878694595,0.256421,81897.0,81895.0,0.15816]
[1741878695014,0.012211,81890.0,81878.0,0.012213]
[1741878695216,0.244247,81884.0,81877.0,0.15784]
[1741878695334,0.012211,81887.0,81881.0,0.012212]
[1741878695538,0.256451,81887.0,81882.0,0.11970099]
[1741878695735,0.077,81892.0,81891.0,0.256438]
[1741878695938,0.00571304,81898.0,81891.0,0.256438]
[1741878695939,0.244214,81896.0,81891.0,0.256438]
[1741878696223,0.012212,81884.0,81878.0,0.244265]
[1741878696534,0.256462,81883.0,81873.0,0.27103285]
[1741878696663,0.244263,81879.0,81873.0,0.256492]
[1741878696873,0.00569812,81883.0,81879.0,0.012213]
[1741878697132,0.012214,81870.0,81860.0,0.012215]